fUSD/lending_fUSD_20251201
["ID","MTS","AMOUNT","RATE_DAILY","PERIOD"]
[395253779,1764570642065,-150.0,0.00016174,2]
[395253780,1764570642074,-150.0,0.00016177,2]
[395253781,1764570642084,-150.0,0.00016182,2]
[395253782,1764570642093,-150.0,0.00016182,2]
[395253783,1764570642103,-150.0,0.00016187,2]
[395253784,1764570642112,-7368.86374398,0.000162,5]
[395253785,1764570642122,-150.0,0.00016202,2]
[395253786,1764570642131,-3300.0,0.00016204,2]
[395253787,1764570642140,-1600.0,0.00016207,2]
[395253788,1764570642150,-150.0,0.00016214,2]
[395253789,1764570642159,-150.0,0.0001622,2]
[395253790,1764570642168,-541.0,0.00016221,2]
[395253791,1764570642178,-541.0,0.00016221,2]
[395253792,1764570642187,-150.0,0.00016226,2]
[395253793,1764570642196,-150.0,0.00016248,2]
[395253794,1764570642207,-150.0,0.00016254,2]
[395253795,1764570642216,-150.0,0.00016258,2]
[395253796,1764570642227,-150.0,0.00016258,2]
[395253797,1764570642238,-3300.0,0.00016259,2]
[395253798,1764570642249,-150.0,0.00016268,2]
[395253799,1764570642258,-150.0,0.00016271,2]
[395253800,1764570642268,-150.0,0.00016271,2]
[395253801,1764570642277,-541.0,0.00016276,2]
[395253802,1764570642287,-1528.0,0.00016285,2]
[395253803,1764570642296,-150.0,0.00016287,2]
[395253804,1764570642308,-150.0,0.00016307,2]
[395253805,1764570642317,-150.0,0.00016307,2]
[395253806,1764570642328,-3300.0,0.00016314,2]
[395253807,1764570642338,-150.0,0.00016316,2]
[395253808,1764570642347,-150.0,0.0001632,2]
[395253809,1764570642358,-150.0,0.00016322,2]
[395253810,1764570642368,-207.4,0.00016329,2]
[395253811,1764570642378,-500.0,0.0001633,2]
[395253812,1764570642387,-150.0,0.0001633,2]
[395253813,1764570642396,-500.0,0.0001633,2]
[395253814,1764570642406,-150.0,0.0001633,2]
[395253815,1764570642416,-500.0,0.0001633,2]
[395253816,1764570642425,-150.0,0.0001633,2]
[395253817,1764570642434,-500.0,0.0001633,2]
[395253818,1764570642444,-500.0,0.0001633,2]
[395253819,1764570642453,-150.0,0.00016333,2]
[395253820,1764570642462,-150.0,0.00016339,2]
[395253821,1764570642471,-200.0,0.0001634,2]
[395253822,1764570642480,-518.0,0.00016342,2]
[395253823,1764570642489,-518.0,0.00016342,2]
[395253824,1764570642498,-150.0,0.00016353,2]
[395253825,1764570642508,-150.53,0.00016356,2]
[395253826,1764570642517,-150.0,0.00016356,2]
[395253827,1764570642526,-300.0,0.00016356,2]
[395253828,1764570642534,-300.0,0.00016356,2]
[395253829,1764570642543,-150.0,0.0001636,2]
[395253830,1764570642552,-150.0,0.0001636,2]
[395253831,1764570642561,-150.0,0.00016369,2]
[395253832,1764570642571,-3300.0,0.00016369,2]
[395253833,1764570642580,-1097.0,0.0001638,2]
[395253834,1764570642588,-150.0,0.00016387,2]
[395253835,1764570642597,-1140.7599925,0.00016387,2]
[395253836,1764570642606,-150.0,0.00016395,2]
[395253837,1764570642615,-500.0,0.00016397,2]
[395253838,1764570642624,-1000.0,0.00016398,2]
[395253839,1764570642634,-487.452036,0.00016398,2]
[395253840,1764570642644,-500.74233697,0.00016398,2]
[395253841,1764570642655,-1000.0,0.00016398,2]
[395253842,1764570642666,-1000.0,0.00016398,2]
[395253843,1764570642675,-1000.0,0.00016398,2]
[395253844,1764570642684,-516.50455865,0.00016398,2]
[395253845,1764570642693,-1000.53815546,0.00016398,2]
[395253846,1764570642702,-1000.0,0.00016398,2]
[395253847,1764570642712,-1000.0,0.00016398,2]
[395253848,1764570642721,-1000.0,0.00016398,2]
[395253849,1764570642731,-1000.0,0.00016398,2]
[395253850,1764570642740,-1000.0,0.00016398,2]
[395253851,1764570642749,-831.20229943,0.00016398,2]
[395253852,1764570642759,-150.0,0.00016398,2]
[395253853,1764570642768,-150.0,0.00016405,2]
[395253854,1764570642777,-465.96204167,0.0001641,2]
[395253855,1764570642786,-541.0,0.00016411,2]
[395253856,1764570642795,-150.0,0.0001642,2]
[395253858,1764570642805,-150.0,0.0001642,2]
[395253860,1764570642814,-150.0,0.0001642,2]
[395253861,1764570642823,-3300.0,0.00016424,2]
[395253862,1764570642832,-600.0,0.00016438,2]
[395253863,1764570642842,-150.0,0.0001645,2]
[395253864,1764570642851,-150.0,0.0001645,2]
[395253865,1764570642862,-150.0,0.00016453,2]
[395253866,1764570642871,-150.0,0.00016464,2]
[395253867,1764570642880,-500.0,0.00016467,2]
[395253869,1764570642890,-500.0,0.00016467,2]
[395253871,1764570642899,-500.0,0.00016467,2]
[395253873,1764570642908,-500.0,0.00016467,2]
[395253874,1764570642918,-500.0,0.00016467,2]
[395253875,1764570642928,-500.0,0.00016467,2]
[395253876,1764570642937,-841.0,0.00016467,2]
[395253877,1764570642946,-500.0,0.00016467,2]
[395253878,1764570642957,-150.0,0.00016469,2]
[395253879,1764570642967,-150.0,0.00016477,2]
[395253880,1764570642976,-3300.0,0.00016479,2]
[395253881,1764570642985,-150.0,0.00016487,2]
[395253882,1764570642994,-541.0,0.00016487,2]
[395253883,1764570643003,-736.0,0.00016488,2]
[395253884,1764570643012,-953.29831798,0.00016493,2]
[395253885,1764570643023,-150.0,0.00016495,2]
[395253886,1764570643032,-150.0,0.00016501,2]
[395253887,1764570643041,-150.0,0.00016501,2]
[395253888,1764570643051,-242.2401016,0.00016504,2]
[395253889,1764570643060,-150.0,0.0001652,2]
[395253890,1764570643070,-150.0,0.00016523,2]
[395253891,1764570643080,-150.0,0.00016529,2]
[395253892,1764570643089,-9443.14707226,0.00016533,2]
[395253893,1764570643099,-2794.14526713,0.00016533,2]
[395253894,1764570643109,-3300.0,0.00016534,2]
[395253895,1764570643118,-150.0,0.00016539,2]
[395253896,1764570643128,-150.0,0.00016539,2]
[395253897,1764570643138,-150.0,0.00016543,2]
[395253898,1764570643147,-150.0,0.00016553,2]
[395253900,1764570643157,-11342.96089445,0.00016577,2]
[395253902,1764570643166,-150.0,0.00016582,2]
[395253904,1764570643175,-242.2401016,0.00016583,2]
[395253905,1764570643184,-150.0,0.00016584,2]
[395253906,1764570643194,-150.0,0.00016587,2]
[395253907,1764570643203,-518.0,0.00016589,2]
[395253908,1764570643213,-150.0,0.00016594,2]
[395253909,1764570643223,-500.0,0.00016604,2]
[395253910,1764570643232,-550.88958633,0.00016604,2]
[395253911,1764570643242,-500.0,0.00016604,2]
[395253912,1764570643251,-500.0,0.00016604,2]
[395253913,1764570643261,-500.0,0.00016604,2]
[395253914,1764570643270,-500.0,0.00016604,2]
[395253915,1764570643280,-841.0,0.00016604,2]
[395253916,1764570643290,-500.0,0.00016604,2]
[395253917,1764570643299,-150.0,0.00016604,2]
[395253918,1764570643308,-1740.0,0.00016604,2]
[395253919,1764570643318,-150.0,0.00016617,2]
[395253920,1764570643328,-150.0,0.0001662,2]
[395253921,1764570643337,-150.0,0.00016629,2]
[395253922,1764570643346,-150.0,0.00016629,2]
[395253923,1764570643355,-150.0,0.00016647,2]
[395253924,1764570643365,-150.0,0.00016647,2]
[395253925,1764570643374,-150.0,0.00016653,2]
[395253926,1764570643383,-150.0,0.0001666,2]
[395253927,1764570643392,-5491.65035635,0.0001666,2]
[395253928,1764570643401,-242.2401016,0.00016662,2]
[395253929,1764570643410,-150.0,0.00016663,2]
[395253930,1764570643420,-150.0,0.00016673,2]
[395253931,1764570643429,-150.0,0.00016677,2]
[395253932,1764570643438,-150.0,0.00016687,2]
[395253933,1764570643447,-519.4667205,0.00016688,2]
[395253934,1764570643456,-2152.51,0.00016688,2]
[395253935,1764570643465,-150.0,0.00016691,2]
[395253936,1764570643475,-151.0,0.00016697,2]
[395253937,1764570643484,-533.88981491,0.00016697,2]
[395253938,1764570643494,-194.72792766,0.00016697,2]
[395253939,1764570643503,-204.80283333,0.00016697,2]
[395253940,1764570643512,-151.0,0.00016697,2]
[395253941,1764570643521,-151.0,0.00016697,2]
[395253942,1764570643531,-642.94,0.00016697,2]
[395253943,1764570643540,-222.76990664,0.00016713,2]
[395253944,1764570643549,-150.0,0.00016718,2]
[395253945,1764570643558,-150.0,0.00016718,2]
[395253946,1764570643567,-150.0,0.0001672,2]
[395253947,1764570643577,-150.0,0.00016725,2]
[395253948,1764570643587,-500.0,0.00016741,2]
[395253949,1764570643595,-500.0,0.00016741,2]
[395253950,1764570643605,-500.0,0.00016741,2]
[395253951,1764570643614,-500.0,0.00016741,2]
[395253952,1764570643623,-500.0,0.00016741,2]
[395253953,1764570643633,-841.0,0.00016741,2]
[395253954,1764570643642,-163.1222244,0.00016741,2]
[395253955,1764570643651,-150.0,0.00016741,2]
[395253956,1764570643664,-1740.0,0.00016741,2]
[395253957,1764570643673,-242.2401016,0.00016742,2]
[395253958,1764570643682,-150.0,0.00016744,2]
[395253959,1764570643691,-150.0,0.00016744,2]
[395253960,1764570643701,-6911.10840627,0.00016745,2]
[395253962,1764570643711,-150.0,0.00016753,2]
[395253964,1764570643720,-150.0,0.00016763,2]
[395253966,1764570643729,-150.0,0.00016765,2]
[395253967,1764570643740,-150.0,0.00016786,2]
[395253968,1764570643750,-150.0,0.0001679,2]
[395253969,1764570643759,-150.0,0.00016807,2]
[395253970,1764570643767,-150.0,0.00016807,2]
[395253971,1764570643777,-150.0,0.00016816,2]
[395253972,1764570643786,-150.0,0.0001682,2]
[395253973,1764570643795,-242.2401016,0.00016821,2]
[395253974,1764570643804,-150.0,0.00016825,2]
[395253975,1764570643813,-150.0,0.00016832,2]
[395253976,1764570643823,-150.0,0.00016839,2]
[395253977,1764570643833,-150.0,0.00016852,2]
[395253978,1764570643842,-150.0,0.00016853,2]
[395253979,1764570643852,-150.0,0.00016856,2]
[395253980,1764570643861,-200.0,0.00016863,2]
[395253981,1764570643870,-200.0,0.00016864,2]
[395253982,1764570643879,-200.0,0.00016864,2]
[395253983,1764570643889,-790.65,0.00016877,2]
[395253984,1764570643899,-153.47951242,0.00016878,2]
[395253985,1764570643908,-500.0,0.00016878,2]
[395253986,1764570643918,-500.0,0.00016878,2]
[395253987,1764570643927,-500.0,0.00016878,2]
[395253988,1764570643936,-500.0,0.00016878,2]
[395253989,1764570643945,-841.0,0.00016878,2]
[395253990,1764570643954,-150.0,0.00016878,2]
[395253991,1764570643964,-1740.0,0.00016878,2]
[395253992,1764570643974,-150.0,0.00016886,2]
[395253993,1764570643985,-15123.82076573,0.00016896,2]
[395253994,1764570643995,-150.0,0.00016897,2]
[395253995,1764570644004,-150.0,0.00016897,2]
[395253996,1764570644014,-452.53995191,0.00016897,2]
[395253997,1764570644023,-10000.0,0.000169,2]
[395253998,1764570644033,-9443.14707226,0.000169,2]
[395253999,1764570644043,-1000.0,0.000169,2]
[395254000,1764570644053,-242.2401016,0.000169,2]
[395254001,1764570644064,-2794.14526713,0.000169,2]
[395254002,1764570644075,-3507.19708403,0.000169,2]
[395254003,1764570644085,-1140.7599925,0.000169,2]
[395254004,1764570644095,-595.07469987,0.000169,2]
[395254005,1764570644105,-10252.0,0.000169,2]
[395254006,1764570644114,-150.0,0.00016905,2]
[395254007,1764570644124,-150.0,0.00016912,2]
[395254008,1764570644133,-150.0,0.0001692,2]
[395254009,1764570644143,-150.0,0.00016921,2]
[395254010,1764570644152,-518.0,0.00016921,2]
[395254011,1764570644161,-2000.0,0.00016927,2]
[395254012,1764570644170,-2000.0,0.00016927,2]
[395254013,1764570644180,-2000.0,0.00016927,2]
[395254014,1764570644189,-1297.37,0.00016927,2]
[395254015,1764570644198,-2000.0,0.00016927,2]
[395254016,1764570644208,-2000.0,0.00016927,2]
[395254017,1764570644217,-2000.0,0.00016927,2]
[395254018,1764570644226,-322.63,0.00016934,2]
[395254019,1764570644236,-150.0,0.00016942,2]
[395254020,1764570644245,-1500.0,0.00016946,2]
[395254021,1764570644255,-1500.0,0.00016946,2]
[395254022,1764570644264,-271.24315862,0.00016946,2]
[395254023,1764570644273,-1500.0,0.00016946,2]
[395254024,1764570644282,-934.82176489,0.00016946,2]
[395254025,1764570644291,-1500.0,0.00016946,2]
[395254026,1764570644300,-501.34823292,0.00016946,2]
[395254027,1764570644310,-1500.0,0.00016946,2]
[395254028,1764570644555,-1000.0,0.00016946,2]
[395254029,1764570644566,-1500.0,0.00016946,2]
[395254030,1764570644575,-150.0,0.00016953,2]
[395254031,1764570644585,-1000.0,0.00016964,2]
[395254032,1764570644594,-1000.0,0.00016964,2]
[395254033,1764570644603,-1000.0,0.00016964,2]
[395254034,1764570644612,-1000.0,0.00016964,2]
[395254035,1764570644622,-1000.0,0.00016964,2]
[395254036,1764570644631,-300.971,0.00016964,2]
[395254037,1764570644640,-150.0,0.00016973,2]
[395254038,1764570644649,-162.85978352,0.00016973,2]
[395254039,1764570644661,-500.0,0.00016983,2]
[395254040,1764570644670,-7036.0,0.00016986,2]
[395254041,1764570644679,-258.82276166,0.00016986,2]
[395254042,1764570644689,-207.26260524,0.00016986,2]
[395254043,1764570644699,-153.31902391,0.00016986,2]
[395254044,1764570644709,-150.42787237,0.00016986,2]
[395254045,1764570644718,-287.94237845,0.00016986,2]
[395254046,1764570644727,-150.38501482,0.00016986,2]
[395254047,1764570644738,-151.79282377,0.00016986,2]
[395254048,1764570644748,-181.60520491,0.00016986,2]
[395254049,1764570644758,-255.96291346,0.00016986,2]
[395254050,1764570644768,-151.2234943,0.00016986,2]
[395254051,1764570644777,-151.40541107,0.00016986,2]
[395254052,1764570644787,-150.0,0.00016986,2]
[395254053,1764570644796,-152.43824806,0.00016986,2]
[395254054,1764570644805,-182.17370662,0.00016986,2]
[395254055,1764570644815,-202.34922021,0.00016986,2]
[395254056,1764570644824,-600.0,0.00016986,2]
[395254057,1764570644833,-1287.42138508,0.0001699,2]
[395254058,1764570644843,-1287.42138508,0.0001699,2]
[395254059,1764570644852,-151.0,0.00016993,2]
[395254060,1764570644863,-266.0,0.00016995,2]
[395254061,1764570644872,-500.0,0.00016995,2]
[395254062,1764570644881,-500.0,0.00016995,2]
[395254063,1764570644891,-500.0,0.00016995,2]
[395254064,1764570644900,-2152.51,0.00016995,2]
[395254065,1764570644910,-500.0,0.00016995,2]
[395254066,1764570644919,-500.0,0.00016995,2]
[395254067,1764570644932,-508.34597355,0.00016995,2]
[395254068,1764570644943,-500.0,0.00016995,2]
[395254069,1764570644953,-500.0,0.00016995,2]
[395254070,1764570644963,-805.41,0.00016995,2]
[395254071,1764570644973,-151205.1769279,0.00016996,2]
[395254072,1764570644983,-1317.2780376,0.00016996,2]
[395254073,1764570644992,-1918.4450744,0.00016996,2]
[395254074,1764570645002,-232.5916615,0.00016996,2]
[395254075,1764570645011,-626007.00997793,0.00016996,2]
[395254077,1764570646037,-1000.0,0.00016398,2]
[395254078,1764570646047,-38186.02314089,0.00016996,2]
[395254081,1764570646074,-1632.3679,0.00016996,2]
[395254088,1764570646229,-49691.90836748,0.00016996,2]
[395254089,1764570646239,-3782.7397935,0.00016996,2]
[395254090,1764570646249,-12907.0454059,0.00016996,2]
[395254091,1764570646258,-8401.7940777,0.00016996,2]
[395254092,1764570646268,-157.7512144,0.00016996,2]
[395254093,1764570646277,-151.0,0.00016997,2]
[395254094,1764570646286,-790.65,0.00016998,2]
[395254095,1764570646295,-500.0,0.00016999,2]
[395254096,1764570646304,-500.0,0.00016999,2]
[395254097,1764570646314,-500.0,0.00016999,2]
[395254098,1764570646323,-197.83401754,0.00016999,2]
[395254099,1764570646333,-790.65,0.00016999,2]
[395254100,1764570646343,-790.65,0.00016999,2]
[395254101,1764570646352,-790.65,0.00016999,2]
[395254102,1764570646361,-790.65,0.00016999,2]
[395254103,1764570646371,-790.65,0.00016999,2]
[395254104,1764570646380,-790.65,0.00016999,2]
[395254105,1764570646390,-790.65,0.00016999,2]
[395254106,1764570646399,-790.65,0.00016999,2]
[395254107,1764570646409,-790.65,0.00016999,2]
[395254108,1764570646418,-790.65,0.00016999,2]
[395254109,1764570646428,-790.65,0.00016999,2]
[395254110,1764570646438,-790.65,0.00016999,2]
[395254111,1764570646448,-790.65,0.00016999,2]
[395254112,1764570646458,-790.65,0.00016999,2]
[395254113,1764570646467,-790.65,0.00016999,2]
[395254114,1764570646477,-790.65,0.00016999,2]
[395254115,1764570646486,-790.65,0.00016999,2]
[395254116,1764570646495,-790.65189094,0.00016999,2]
[395254117,1764570646504,-500.0,0.00016999,2]
[395254118,1764570646513,-500.0,0.00016999,2]
[395254119,1764570646523,-500.0,0.00016999,2]
[395254120,1764570646532,-500.0,0.00016999,2]
[395254121,1764570646541,-500.0,0.00016999,2]
[395254122,1764570646550,-500.0,0.00016999,2]
[395254123,1764570646559,-500.0,0.00016999,2]
[395254124,1764570646568,-500.0,0.00016999,2]
[395254125,1764570646577,-500.0,0.00016999,2]
[395254126,1764570646586,-500.0,0.00016999,2]
[395254127,1764570646595,-500.0,0.00016999,2]
[395254128,1764570646604,-500.0,0.00016999,2]
[395254129,1764570646613,-500.0,0.00016999,2]
[395254130,1764570646623,-507.32385656,0.00016999,2]
[395254131,1764570646632,-150.61555063,0.00016999,2]
[395254132,1764570646641,-300.0,0.00016999,2]
[395254133,1764570646650,-2152.51,0.00016999,2]
[395254134,1764570646662,-2152.51,0.00016999,2]
[395254135,1764570646671,-2152.51,0.00016999,2]
[395254136,1764570646680,-2152.51,0.00016999,2]
[395254137,1764570646690,-2152.51,0.00016999,2]
[395254138,1764570646700,-2152.51,0.00016999,2]
[395254139,1764570646710,-2152.51,0.00016999,2]
[395254140,1764570646725,-2152.51,0.00016999,2]
[395254141,1764570646736,-2152.51,0.00016999,2]
[395254142,1764570646746,-2152.51,0.00016999,2]
[395254143,1764570646755,-2152.51,0.00016999,2]
[395254144,1764570646764,-2152.51,0.00016999,2]
[395254145,1764570646774,-2152.51,0.00016999,2]
[395254146,1764570646783,-2152.51,0.00016999,2]
[395254147,1764570646793,-2152.51,0.00016999,2]
[395254148,1764570646802,-2152.51,0.00016999,2]
[395254149,1764570646811,-2152.51,0.00016999,2]
[395254150,1764570646821,-2152.58746161,0.00016999,2]
[395254151,1764570646831,-300.0,0.00016999,2]
[395254152,1764570646840,-300.0,0.00016999,2]
[395254153,1764570646850,-500.0,0.00016999,2]
[395254154,1764570646859,-500.0,0.00016999,2]
[395254155,1764570646869,-500.0,0.00016999,2]
[395254156,1764570646878,-500.0,0.00016999,2]
[395254157,1764570646887,-203.44,0.00016999,2]
[395254158,1764570646897,-500.0,0.00016999,2]
[395254159,1764570646906,-540.26417137,0.00016999,2]
[395254160,1764570646916,-500.0,0.00016999,2]
[395254161,1764570646925,-500.0,0.00016999,2]
[395254162,1764570646935,-500.0,0.00016999,2]
[395254163,1764570646945,-500.0,0.00016999,2]
[395254164,1764570646955,-500.0,0.00016999,2]
[395254165,1764570646964,-500.0,0.00016999,2]
[395254166,1764570646973,-500.0,0.00016999,2]
[395254167,1764570646982,-500.0,0.00016999,2]
[395254168,1764570646991,-500.0,0.00016999,2]
[395254169,1764570647001,-500.0,0.00016999,2]
[395254170,1764570647010,-500.0,0.00016999,2]
[395254171,1764570647019,-500.0,0.00016999,2]
[395254172,1764570647028,-500.0,0.00016999,2]
[395254173,1764570647038,-500.0,0.00016999,2]
[395254174,1764570647047,-313.76,0.00016999,2]
[395254175,1764570647057,-805.41,0.00016999,2]
[395254176,1764570647067,-805.41,0.00016999,2]
[395254177,1764570647076,-805.41,0.00016999,2]
[395254178,1764570647086,-805.41,0.00016999,2]
[395254179,1764570647100,-805.41,0.00016999,2]
[395254180,1764570647109,-805.41,0.00016999,2]
[395254181,1764570647119,-805.41,0.00016999,2]
[395254182,1764570647130,-805.41,0.00016999,2]
[395254183,1764570647140,-805.41,0.00016999,2]
[395254184,1764570647150,-805.41,0.00016999,2]
[395254185,1764570647159,-805.41,0.00016999,2]
[395254186,1764570647169,-805.41,0.00016999,2]
[395254187,1764570647178,-805.41,0.00016999,2]
[395254188,1764570647187,-805.41,0.00016999,2]
[395254189,1764570647197,-805.41,0.00016999,2]
[395254190,1764570647206,-805.41,0.00016999,2]
[395254191,1764570647216,-805.41,0.00016999,2]
[395254192,1764570647225,-805.41,0.00016999,2]
[395254193,1764570647235,-805.41,0.00016999,2]
[395254194,1764570647245,-805.5,0.00016999,2]
[395254195,1764570647255,-300.0,0.00016999,2]
[395254196,1764570647266,-1258.0,0.00017,2]
[395254197,1764570647275,-613.0,0.00017,2]
[395254198,1764570647285,-909.0,0.00017,2]
[395254199,1764570647295,-1217.12,0.00017,2]
[395254200,1764570647305,-3442.0,0.00017,2]
[395254201,1764570647315,-1322.0,0.00017,2]
[395254202,1764570647324,-1603.0,0.00017,2]
[395254203,1764570647334,-3920597.22786939,0.00017,2]
[395254204,1764570647347,-115584.44739294,0.00017,2]
[395254205,1764570647358,-2134.55639322,0.00017,2]
[395254206,1764570647368,-751.16047103,0.00017,2]
[395254207,1764570647379,-92507.40806979,0.00017,2]
[395254208,1764570647390,-913.53,0.00017,2]
[395254209,1764570647667,-500.0,0.00013699,2]
[395254210,1764570647677,-260.64164101,0.00013699,2]
[395254211,1764570647687,-427.65493559,0.00016494,2]
[395254212,1764570647699,-610.0,0.00017,2]
[395254213,1764570647709,-1682.86358713,0.00017,2]
[395254214,1764570647720,-21550.0,0.00017,2]
[395254215,1764570647759,-820.4836,0.00017,2]
[395254216,1764570648020,-383.87106597,0.00016438,2]
[395254217,1764570648030,-16860.72893403,0.00017,2]
[395254226,1764570831669,262.1819,0.00012002,2]
[395254228,1764571324188,179.24,6.338e-05,2]
[395254229,1764571324372,179.24,9.508e-05,2]
[395254235,1764571479528,700.0,0.00012,2]
[395254241,1764571667934,-800.0,0.00017,15]
[395254256,1764571832492,-375.46867537,0.000121,2]
[395254257,1764571832513,-624.53132463,0.000121,2]
[395254258,1764571832522,-250.0,0.00012287,2]
[395254259,1764571832532,-540.26867537,0.00012474,2]
[395254260,1764571832545,-459.73132463,0.00012474,2]
[395254261,1764571832555,-166.66,0.00012627,2]
[395254262,1764571832566,-179.24,0.00012677,2]
[395254263,1764571832575,-118.40576468,0.0001275,2]
[395254267,1764571832755,-164.33423532,0.0001275,2]
[395254268,1764571832765,-2063.6036669,0.0001276,2]
[395254269,1764571832775,-2751.0,0.00012804,2]
[395254270,1764571832784,-300.0,0.00012859,2]
[395254271,1764571832794,-300.0,0.00012859,2]
[395254272,1764571832803,-300.0,0.00012859,2]
[395254273,1764571832812,-1200.0,0.00012859,2]
[395254274,1764571832821,-415.64625871,0.00012859,2]
[395254275,1764571832831,-377.6369478,0.00012859,2]
[395254276,1764571832841,-170.25271,0.00012859,2]
[395254277,1764571832850,-500.0,0.00012859,2]
[395254278,1764571832860,-605.6211322,0.00012859,2]
[395254279,1764571832869,-500.0,0.00012859,2]
[395254280,1764571832879,-1643.52,0.0001286,2]
[395254281,1764571832888,-235.3283,0.0001286,2]
[395254282,1764571832898,-280.8878,0.0001286,2]
[395254283,1764571832907,-13260.71402757,0.0001286,2]
[395254284,1764571832919,-2532.10146064,0.0001286,2]
[395254285,1764571832930,-3616.7055247,0.0001286,2]
[395254286,1764571832962,-1091.80232096,0.0001286,2]
[395254287,1764571840176,-286.12023213,0.00012859,2]
[395254288,1764571840187,-500.0,0.00012859,2]
[395254289,1764571840197,-572.62900421,0.00012859,2]
[395254290,1764571840207,-500.0,0.00012859,2]
[395254291,1764571840216,-500.0,0.00012859,2]
[395254292,1764571840226,-500.0,0.00012859,2]
[395254293,1764571840236,-500.0,0.00012859,2]
[395254294,1764571840246,-500.0,0.00012859,2]
[395254295,1764571840255,-500.0,0.00012859,2]
[395254296,1764571840266,-500.0,0.00012859,2]
[395254297,1764571840275,-500.0,0.00012859,2]
[395254298,1764571840285,-500.0,0.00012859,2]
[395254299,1764571840294,-500.0,0.00012859,2]
[395254300,1764571840304,-500.0,0.00012859,2]
[395254301,1764571840313,-500.0,0.00012859,2]
[395254302,1764571840323,-500.0,0.00012859,2]
[395254303,1764571840333,-500.0,0.00012859,2]
[395254304,1764571840343,-500.0,0.00012859,2]
[395254305,1764571840352,-500.0,0.00012859,2]
[395254307,1764571840362,-195.78442634,0.00012859,2]
[395254308,1764571840371,-500.0,0.00012859,2]
[395254310,1764571840380,-739498.67666613,0.0001286,2]
[395254312,1764571840390,-30000.0,0.0001286,2]
[395254314,1764571840400,-1575.36,0.00012868,2]
[395254316,1764571840409,-1200.0,0.00012869,2]
[395254328,1764571840834,-150.0,0.00012869,2]
[395254329,1764571840845,-500.0,0.00012873,2]
[395254330,1764571840854,-500.0,0.00012873,2]
[395254331,1764571840864,-500.0,0.00012873,2]
[395254332,1764571840873,-500.0,0.00012873,2]
[395254333,1764571840883,-500.0,0.00012873,2]
[395254334,1764571840892,-500.0,0.00012873,2]
[395254336,1764571840901,-500.0,0.00012873,2]
[395254337,1764571840911,-500.0,0.00012873,2]
[395254338,1764571840920,-159.45765875,0.00012873,2]
[395254339,1764571840930,-500.0,0.00012873,2]
[395254340,1764571840939,-500.0,0.00012873,2]
[395254341,1764571840948,-500.0,0.00012873,2]
[395254342,1764571840957,-500.0,0.00012873,2]
[395254343,1764571840968,-500.0,0.00012873,2]
[395254344,1764571840979,-500.0,0.00012873,2]
[395254345,1764571840990,-481.4168575,0.00012873,2]
[395254346,1764571841001,-500.0,0.00012873,2]
[395254347,1764571841010,-500.0,0.00012873,2]
[395254348,1764571841020,-500.0,0.00012873,2]
[395254349,1764571841029,-150.0,0.00012873,2]
[395254350,1764571841040,-150.0,0.00012873,2]
[395254351,1764571841053,-500.0,0.00012873,2]